bitfinex-derivatives/quotes_SOLF0:USTF0_20260202
["timestamp","ask_amount","ask_price","bid_price","bid_amount"]
[1770055270461,11.5257324,104.61,104.57,40.07113058]
[1770055270859,52.48814678,104.62,104.57,40.07113058]
[1770055271063,49.57241438,104.62,104.57,40.07113058]
[1770055272065,2.9157324,104.66,104.6,40.07113058]
[1770055272268,43.87914678,104.67,104.6,42.98686298]
[1770055272460,11.5223324,104.65,104.6,40.07113058]
[1770055274267,8.6066,104.65,104.6,40.07113058]
[1770055274860,2.9157324,104.67,104.61,40.07113058]
[1770055275066,177.71734678,104.69,104.61,42.98686298]
[1770055275769,2.9157324,104.68,104.61,42.98686298]
[1770055275963,8.605,104.67,104.61,51.59656298]
[1770055276165,43.87914678,104.66,104.61,40.07113058]
[1770055276564,2.9157324,104.65,104.61,40.07113058]
[1770055276965,11.5222324,104.65,104.59,48.68253058]
[1770055278570,8.6065,104.65,104.59,48.68253058]
[1770055279371,8.6074,104.64,104.59,40.07113058]
[1770055280575,8.6066,104.65,104.59,48.68253058]
[1770055280976,175.21772437,104.68,104.6,40.50694465]
[1770055281773,41.37502437,104.67,104.6,49.11754465]
[1770055282977,8.6065,104.65,104.6,40.50694465]
[1770055283279,41.37502437,104.66,104.6,40.50694465]
[1770055284777,8.6075,104.64,104.6,40.50694465]
[1770055285180,49.98252437,104.64,104.58,49.11904465]
[1770055285380,41.37502437,104.63,104.56,49.12014465]
[1770055285582,41.37502437,104.62,104.56,40.50694465]
[1770055285779,8.6108,104.6,104.56,40.50694465]
[1770055286583,8.6099,104.61,104.56,40.50694465]
[1770055287181,182.57887821,104.64,104.56,49.12074465]
[1770055287377,41.37502437,104.63,104.56,49.12074465]
[1770055288187,8.6093,104.62,104.56,49.12074465]
[1770055289586,41.37502437,104.65,104.58,40.50694465]
[1770055290382,8.6074,104.64,104.58,49.11904465]
[1770055291183,175.22472437,104.68,104.6,40.50694465]
[1770055291380,41.37502437,104.68,104.6,40.50694465]
[1770055292191,49.97912437,104.68,104.62,8.6089]
[1770055292392,49.97912437,104.68,104.62,49.11584465]
[1770055295190,8.6033,104.69,104.63,49.11494465]
[1770055295396,41.37502437,104.72,104.64,40.50694465]
[1770055295589,41.37502437,104.72,104.65,40.50694465]
[1770055296283,8.6022,104.71,104.65,49.11324465]
[1770055298381,11.52204582,104.71,104.65,49.11324465]
[1770055299890,8.6022,104.71,104.66,40.50694465]
[1770055300085,8.6022,104.71,104.66,43.42679047]
[1770055300286,8.6022,104.71,104.66,40.50694465]
[1770055301192,11.52204582,104.71,104.66,40.50694465]
[1770055301394,8.6022,104.71,104.66,40.50694465]
[1770055303089,52.89567019,104.72,104.66,49.11254465]
[1770055303292,8.6008,104.72,104.67,40.50694465]
[1770055303896,49.97672437,104.71,104.65,40.50694465]
[1770055304096,2.91984582,104.7,104.65,40.50694465]
[1770055304295,44.29487019,104.7,104.65,40.50694465]
[1770055304488,2.91984582,104.69,104.65,40.50694465]
[1770055305294,44.29487019,104.7,104.65,40.50694465]
[1770055306198,8.6033,104.69,104.65,40.50694465]
[1770055307398,8.6046,104.68,104.63,40.50694465]
[1770055307691,41.37502437,104.69,104.63,40.50694465]
[1770055307896,8.6049,104.67,104.63,40.50694465]
[1770055309093,8.6045,104.68,104.63,40.50694465]
[1770055309691,8.6045,104.68,104.58,133.9598]
[1770055309692,42.11474109,104.63,104.55,42.3217339]
[1770055309898,40.52731851,104.61,104.55,42.3217339]
[1770055310092,40.52731851,104.61,104.56,353.14]
[1770055311500,8.6106,104.6,104.56,353.14]
[1770055311901,8.6106,104.6,104.56,381.08]
[1770055313302,174.43571851,104.63,104.56,420.9725224]
[1770055313702,49.13611851,104.63,104.56,429.5863224]
[1770055315803,49.13611851,104.63,104.54,134.0193]
[1770055315804,40.52731851,104.65,104.57,39.8925224]
[1770055316004,40.52731851,104.65,104.59,39.8925224]
[1770055317402,8.6073,104.64,104.59,39.8925224]
[1770055319307,8.6065,104.65,104.59,39.8925224]
[1770055319507,8.6065,104.65,104.6,421.1125224]
[1770055320402,181.66457072,104.69,104.61,39.8925224]
[1770055320607,40.52731851,104.69,104.61,39.8925224]
[1770055320808,40.52731851,104.69,104.63,39.8925224]
[1770055322410,8.6049,104.67,104.63,39.8925224]
[1770055323405,49.13121851,104.69,104.63,39.8925224]
[1770055323810,40.52731851,104.71,104.63,39.8925224]
[1770055324106,40.52731851,104.7,104.63,48.4999224]
[1770055325010,8.604,104.68,104.63,39.8925224]
[1770055325211,8.604,104.68,104.63,321.1525224]
[1770055326012,8.6033,104.69,104.63,321.1525224]
[1770055326209,40.52731851,104.69,104.63,321.1525224]
[1770055327312,8.604,104.68,104.63,321.1525224]
[1770055328507,11.52588128,104.68,104.63,321.1525224]
[1770055329013,11.52698128,104.67,104.61,48.5022224]
[1770055329214,2.92188128,104.67,104.63,381.16]
[1770055330012,8.6047,104.68,104.64,39.8925224]
[1770055330216,43.44919979,104.7,104.64,39.8925224]
[1770055330713,2.92188128,104.69,104.65,381.16]
[1770055331305,11.52538128,104.69,104.65,381.16]
[1770055332913,8.6035,104.69,104.65,381.16]
[1770055333713,11.52538128,104.69,104.65,381.16]
[1770055336411,8.6035,104.69,104.65,381.16]
[1770055336612,11.52538128,104.69,104.65,381.16]
[1770055337209,11.52428128,104.7,104.66,39.8925224]
[1770055337513,2.92188128,104.68,104.64,39.8925224]
[1770055337917,11.52598128,104.68,104.65,290.42]
[1770055338815,2.92188128,104.67,104.65,290.42]
[1770055340720,11.52598128,104.68,104.65,290.42]
[1770055342621,8.6041,104.68,104.65,290.42]
[1770055346529,8.6049,104.67,104.64,42.44655687]
[1770055346828,172.87132614,104.68,104.63,381.1]
[1770055347028,39.02672614,104.67,104.57,141.28473322]
[1770055347230,39.02672614,104.67,104.58,381.1]
[1770055347930,8.6065,104.65,104.59,8.6107]
[1770055348636,8.6065,104.65,104.6,42.44655687]
[1770055348934,8.6065,104.65,104.61,423.54655687]
[1770055349535,39.02672614,104.65,104.59,42.44655687]
[1770055349736,39.02672614,104.65,104.6,423.56655687]
[1770055350236,8.6085,104.63,104.6,423.56655687]
[1770055355236,8.6085,104.63,104.6,42.44655687]
[1770055355540,8.6073,104.64,104.6,423.62655687]
[1770055356238,8.6083,104.63,104.6,381.18]
[1770055356436,180.16391188,104.69,104.61,42.44655687]
[1770055356648,180.14691188,104.71,104.61,42.44655687]
[1770055356839,39.02672614,104.7,104.63,42.44655687]
[1770055358337,8.6043,104.68,104.63,42.44655687]
[1770055359437,8.6051,104.67,104.63,42.44655687]
[1770055359642,39.02672614,104.69,104.63,42.44655687]
[1770055359842,39.02672614,104.73,104.66,42.44655687]
[1770055360040,39.02672614,104.73,104.66,423.62655687]
[1770055361445,8.6016,104.71,104.66,423.62655687]
[1770055362343,2.92028793,104.71,104.66,42.44655687]
[1770055362536,39.02672614,104.7,104.62,211.22028793]
[1770055362737,2.92028793,104.71,104.64,2.92028793]
[1770055363343,2.92028793,104.73,104.66,2.92028793]
[1770055363639,41.94701407,104.74,104.67,2.92028793]
[1770055363841,11.52048793,104.73,104.66,11.52588793]
[1770055364047,2.92028793,104.72,104.65,384.06028793]
[1770055364248,2.92028793,104.71,104.65,381.14]
[1770055364440,11.52288793,104.7,104.65,35.83395225]
[1770055365648,8.6026,104.7,104.65,35.83395225]
[1770055371051,11.52288793,104.7,104.65,35.83395225]
[1770055371256,2.92028793,104.69,104.63,24.76845007]
[1770055371554,2.92028793,104.68,104.63,230.68845007]
[1770055372452,11.52458793,104.68,104.63,230.68845007]
[1770055373451,2.92028793,104.66,104.61,23.93399652]
[1770055374155,11.52608793,104.66,104.61,23.93399652]
[1770055375055,8.6058,104.66,104.61,23.93399652]
[1770055378057,2.92028793,104.69,104.62,26.24541682]
[1770055378252,2.92028793,104.69,104.64,23.32512889]
[1770055378660,37.60828349,104.7,104.64,23.32512889]
[1770055378859,470.7306,104.74,104.64,26.24541682]
[1770055378860,37.60828349,104.72,104.64,26.24541682]
[1770055379157,37.60828349,104.72,104.66,23.13823799]
[1770055379357,11.52248793,104.71,104.66,23.13823799]
[1770055379555,2.92028793,104.71,104.66,23.13823799]
[1770055380059,34.68799556,104.72,104.66,23.13823799]
[1770055380060,11.52338793,104.7,104.66,23.13823799]
[1770055380955,8.6065,104.65,104.6,20.90802097]
[1770055381154,2.92028793,104.62,104.56,20.90802097]
[1770055381355,2.92028793,104.6,104.56,20.90802097]
[1770055381652,2.92028793,104.61,104.56,20.90802097]
[1770055382052,2.92028793,104.58,104.54,20.7166793]
[1770055382458,168.63499556,104.6,104.54,20.7166793]
[1770055383459,8.6118,104.59,104.54,20.7166793]
[1770055384557,34.68799556,104.57,104.51,221.82]
[1770055384861,34.68799556,104.57,104.48,305.02]
[1770055385755,1.0,104.57,104.48,313.6401]
[1770055386152,9.6135,104.57,104.48,313.6401]
[1770055386561,143.596,104.57,104.49,3.63280383]
[1770055387264,9.6135,104.57,104.49,3.63280383]
[1770055388458,143.5967,104.57,104.49,3.63280383]
[1770055388762,8.6141,104.56,104.49,3.63280383]
[1770055392465,8.6141,104.56,104.5,2.17215649]
[1770055392663,35.68799556,104.57,104.5,2.17215649]
[1770055392854,1.0,104.57,104.53,1.85374834]
[1770055393961,1.0,104.57,104.52,338.54]
[1770055394364,1.0,104.57,104.52,340.00757326]
[1770055395368,9.6131,104.57,104.52,340.00757326]
[1770055395766,490.07979556,104.61,104.53,1.58165425]
[1770055396069,34.68799556,104.61,104.53,1.58165425]
[1770055396268,34.68799556,104.61,104.54,0.20067432]
[1770055396471,34.68799556,104.59,104.53,381.4]
[1770055397067,8.6131,104.58,104.53,381.4]
[1770055397460,34.68799556,104.59,104.54,0.02339666]
[1770055397660,34.68799556,104.61,104.54,0.02339666]
[1770055398366,43.29859556,104.6,104.54,0.02339666]
[1770055400970,43.29859556,104.6,104.54,8.63879666]
[1770055403975,32.36497699,104.62,104.54,134.0189]
[1770055404173,32.36497699,104.62,104.55,381.42]
[1770055404372,32.36497699,104.62,104.56,2.92473168]
[1770055405377,35.28970867,104.62,104.55,384.34473168]
[1770055405874,35.10878443,104.61,104.55,381.42]
[1770055406372,43.71868443,104.61,104.55,390.0346]
[1770055406776,35.10878443,104.61,104.55,390.0346]
[1770055408375,8.6107,104.6,104.55,390.0346]
[1770055408668,35.10878443,104.61,104.55,390.0346]
[1770055408874,32.18405275,104.61,104.55,392.95933168]
[1770055409269,40.79395275,104.61,104.55,392.95933168]
[1770055410779,40.79395275,104.61,104.55,390.0346]
[1770055411376,43.71868443,104.61,104.55,390.0346]
[1770055411882,8.6107,104.6,104.55,390.0346]
[1770055412084,8.6107,104.6,104.55,381.42]
[1770055413483,8.6107,104.6,104.55,390.0346]
[1770055414284,43.71868443,104.61,104.55,390.0346]
[1770055414582,40.79395275,104.61,104.55,392.95933168]
[1770055417184,31.60633617,104.64,104.55,518.34823168]
[1770055417379,34.53106785,104.64,104.57,2.92473168]
[1770055417578,34.53106785,104.61,104.56,381.36]
[1770055417784,31.60633617,104.61,104.56,381.36]
[1770055418288,11.53393168,104.62,104.56,389.9732]
[1770055418477,34.49269257,104.63,104.56,384.28496257]
[1770055418787,31.56773,104.63,104.57,2.92496257]
[1770055419689,43.10149257,104.63,104.57,8.6129]
[1770055419889,34.28319453,104.62,104.56,381.36]
[1770055421288,8.6099,104.61,104.56,389.9737]
[1770055423290,42.89229453,104.62,104.56,389.9737]
[1770055424994,39.96733196,104.62,104.57,8.613]
[1770055425388,8.6091,104.62,104.57,8.613]
[1770055426591,39.02377809,104.63,104.58,8.6123]
[1770055428691,30.41547809,104.63,104.58,8.6123]
[1770055431997,30.41547809,104.63,104.58,11.53726257]
[1770055432192,40.46152712,104.65,104.59,11.53616257]
[1770055432396,31.85492712,104.67,104.59,381.32]
[1770055432600,40.46142712,104.65,104.59,392.85566257]
[1770055432898,43.38638969,104.65,104.59,389.9307]
[1770055433498,34.75181086,104.68,104.6,2.92496257]
[1770055433792,31.82684829,104.68,104.62,2.92496257]
[1770055433988,43.32032949,104.67,104.61,8.6097]
[1770055434192,31.79036692,104.66,104.6,2.92496257]
[1770055434593,40.39706692,104.65,104.59,389.9314]
[1770055434792,31.79036692,104.64,104.59,389.9314]
[1770055436797,8.6067,104.65,104.59,392.85636257]
[1770055436998,39.99649135,104.65,104.59,392.85636257]
[1770055438192,42.88934768,104.64,104.59,381.32]
[1770055438593,42.88934768,104.64,104.57,392.79726257]
[1770055440298,39.96438511,104.64,104.58,11.53696257]
[1770055440700,8.6066,104.65,104.59,2.92496257]
[1770055440905,8.6066,104.65,104.59,11.53626257]
[1770055441106,39.69884702,104.65,104.59,11.53626257]
[1770055442005,8.6074,104.64,104.59,11.53626257]
[1770055442204,42.59396106,104.64,104.58,11.53706257]
[1770055442607,39.66899849,104.64,104.58,11.53706257]
[1770055444107,42.38498955,104.63,104.57,8.613]
[1770055444307,33.77668955,104.62,104.55,381.24]
[1770055445305,8.6098,104.61,104.55,389.8547]
[1770055445710,39.03812757,104.61,104.55,389.8547]
[1770055446307,30.42832757,104.61,104.56,8.6137]
[1770055449718,41.3654151,104.63,104.57,8.6131]
[1770055449916,32.73489235,104.65,104.58,2.92496257]
[1770055450116,29.80992978,104.65,104.59,376.96496257]
[1770055450316,29.80992978,104.65,104.6,2.92496257]
[1770055451320,29.80992978,104.65,104.6,11.53476257]
[1770055451615,29.80992978,104.65,104.6,2.92496257]
[1770055451813,29.80992978,104.65,104.6,375.34]
[1770055452011,32.73489235,104.65,104.58,2.92496257]
[1770055453115,32.21089987,104.64,104.58,2.92496257]
[1770055453315,37.8933373,104.64,104.58,11.53656257]
[1770055453715,37.8933373,104.64,104.59,2.92496257]
[1770055454415,37.8933373,104.64,104.58,2.92496257]
[1770055455319,37.8933373,104.64,104.59,8.6113]
[1770055455621,37.8933373,104.64,104.58,2.92496257]
[1770055457420,37.8933373,104.64,104.58,11.53686257]
[1770055457621,29.2859373,104.64,104.59,2.92496257]
[1770055457818,29.2859373,104.64,104.59,11.53556257]
[1770055459318,29.2859373,104.64,104.59,2.92496257]
[1770055459514,37.41117687,104.66,104.6,11.53516257]
[1770055459720,28.80527687,104.65,104.6,11.53516257]
[1770055460123,28.80527687,104.65,104.6,8.6102]
[1770055461625,28.80527687,104.65,104.61,8.6097]
[1770055464722,133.9018,104.64,104.56,23.78357816]
[1770055464924,2.92496257,104.6,104.52,40.35931466]
[1770055465118,133.9344,104.61,104.52,37.43435209]
[1770055465316,2.92496257,104.59,104.52,37.43435209]
[1770055465521,2.92496257,104.58,104.52,46.05075209]
[1770055465721,2.92496257,104.59,104.52,46.05075209]
[1770055465918,2.92496257,104.58,104.52,37.43435209]
[1770055466116,2.92496257,104.58,104.52,46.05145209]
[1770055466324,2.92496257,104.59,104.52,46.05145209]
[1770055466625,2.92496257,104.58,104.52,37.43435209]
[1770055467420,11.53726257,104.58,104.52,37.43435209]
[1770055469829,11.53726257,104.58,104.52,46.05145209]
[1770055471522,2.92496257,104.59,104.53,38.19711863]
[1770055472332,11.53666257,104.59,104.53,38.19711863]
[1770055473430,2.92496257,104.62,104.54,41.19273904]
[1770055473630,2.92496257,104.61,104.54,41.19273904]
[1770055474432,8.6098,104.61,104.55,49.76771637]
[1770055477839,8.6098,104.61,104.55,41.15301637]
[1770055478334,8.6107,104.6,104.55,38.2280538]
[1770055478527,2.92646534,104.59,104.55,38.2280538]
[1770055478836,2.92646534,104.58,104.53,352.02973846]
[1770055479438,2.92646534,104.58,104.53,38.34973846]
[1770055479637,133.9447,104.6,104.53,38.34973846]
[1770055479838,2.92646534,104.58,104.53,38.34973846]
[1770055480334,11.53876534,104.58,104.53,38.34973846]
[1770055480838,8.6123,104.58,104.53,38.34973846]
[1770055481034,11.53876534,104.58,104.53,38.34973846]
[1770055486641,8.6133,104.57,104.53,38.34973846]
[1770055486840,2.92646534,104.57,104.53,38.34973846]
[1770055487141,2.92646534,104.57,104.51,38.56050561]
[1770055487142,8.6146,104.56,104.51,38.56050561]
[1770055487341,2.92646534,104.56,104.51,38.56050561]
[1770055487742,2.92646534,104.57,104.51,38.56050561]
[1770055488139,133.9447,104.6,104.52,38.53866956]
[1770055488342,2.92646534,104.58,104.52,41.4651349]
[1770055488543,8.6131,104.57,104.52,41.4651349]
[1770055488744,8.6131,104.57,104.52,38.53866956]
[1770055489043,2.92646534,104.59,104.53,38.57114012]
[1770055489244,2.92646534,104.6,104.54,41.49760546]
[1770055489444,136.86026534,104.61,104.54,41.49760546]
[1770055489645,8.6119,104.59,104.54,38.57114012]
[1770055489840,3.66974831,104.58,104.49,134.0838]
[1770055490148,3.66974831,104.57,104.5,2.92646534]
[1770055490541,8.6148,104.55,104.47,134.109]
[1770055490847,135.49748484,104.59,104.52,2.92646534]
[1770055491049,138.42395018,104.59,104.52,2.92646534]
[1770055491938,138.42395018,104.59,104.52,34.22304484]
[1770055492448,8.6138,104.57,104.52,34.22304484]
[1770055498256,8.614,104.56,104.52,34.22304484]
[1770055498857,8.6132,104.57,104.52,34.22304484]
[1770055500259,8.6141,104.56,104.52,31.2965795]
[1770055503562,8.6132,104.57,104.52,31.2965795]
[1770055504162,8.614,104.56,104.52,31.2965795]
[1770055504360,15.84022456,104.57,104.52,31.2965795]
[1770055505359,8.6147,104.55,104.52,31.2965795]
[1770055509858,8.6141,104.56,104.52,31.2965795]
[1770055512360,8.6141,104.56,104.52,34.22304484]
[1770055512762,8.6141,104.56,104.52,31.2965795]
[1770055515166,8.6141,104.56,104.52,34.22304484]
[1770055515373,8.6141,104.56,104.48,134.096]
[1770055515374,23.642834,104.55,104.48,30.63192208]
[1770055515571,23.642834,104.54,104.48,30.63192208]
[1770055515772,8.6174,104.52,104.48,30.63192208]
[1770055516366,8.618,104.51,104.48,30.63192208]
[1770055516667,8.618,104.51,104.46,33.54142984]
[1770055517269,8.6189,104.5,104.46,30.6149645]
[1770055517572,22.15636546,104.5,104.44,33.47552709]
[1770055518069,25.0828308,104.5,104.44,30.54906175]
[1770055518267,34.36116569,104.49,104.44,30.54906175]
[1770055519673,31.43470035,104.49,104.44,30.54906175]
[1770055521673,34.36116569,104.49,104.44,30.54906175]
[1770055521874,31.43470035,104.49,104.44,30.54906175]
[1770055524479,34.36116569,104.49,104.44,30.54906175]
[1770055525079,36.1040539,104.48,104.42,42.19424036]
[1770055525478,8.6206,104.48,104.42,42.19424036]
[1770055525672,8.6206,104.48,104.42,39.26777502]
[1770055525976,25.12919114,104.47,104.42,39.26777502]
[1770055526979,36.67705648,104.47,104.42,39.26777502]
[1770055530180,28.05565648,104.47,104.42,39.26777502]
[1770055530480,29.23279568,104.48,104.42,39.26777502]
[1770055530670,29.23279568,104.47,104.42,39.26777502]
[1770055531882,26.30633034,104.47,104.42,39.26777502]
[1770055532882,29.23279568,104.47,104.42,39.26777502]
[1770055533386,8.6214,104.47,104.42,39.26777502]
[1770055533685,11.54786534,104.47,104.42,39.26777502]
[1770055536078,8.6222,104.46,104.42,39.26777502]
[1770055537186,39.02297787,104.47,104.42,39.26777502]
[1770055537381,41.94944321,104.47,104.42,39.26777502]
[1770055538086,8.6222,104.46,104.42,39.26777502]
[1770055540388,36.42595448,104.49,104.42,42.20022109]
[1770055541290,8.6206,104.48,104.43,47.89237502]
[1770055541492,36.42595448,104.49,104.43,47.89237502]
[1770055542288,37.14392056,104.48,104.43,47.89237502]
[1770055542593,34.21147449,104.48,104.43,39.26777502]
[1770055543991,37.14392056,104.48,104.43,39.26777502]
[1770055544197,35.49732303,104.49,104.43,39.26777502]
[1770055544782,32.56487696,104.48,104.43,39.26777502]
[1770055545090,35.49732303,104.48,104.43,39.26777502]
[1770055546380,44.11852303,104.48,104.43,39.26777502]
[1770055547192,8.6216,104.47,104.43,39.26777502]
[1770055547394,11.55404607,104.47,104.43,39.26777502]
[1770055548094,46.42092035,104.47,104.41,47.89367502]
[1770055548794,46.42092035,104.47,104.39,8.6278]
[1770055548795,37.79932035,104.45,104.39,8.6278]
[1770055548994,37.79932035,104.45,104.39,47.89557502]
[1770055549196,11.55624607,104.44,104.39,39.26777502]
[1770055551195,47.74060499,104.43,104.37,49.24068115]
[1770055551388,2.93244607,104.42,104.37,49.24068115]
[1770055552591,11.55804607,104.42,104.37,49.24068115]
[1770055553093,2.93244607,104.42,104.37,49.24068115]
[1770055553290,47.74060499,104.43,104.37,49.24068115]
[1770055553497,2.93244607,104.44,104.37,52.17312722]
[1770055553694,38.8790487,104.44,104.37,52.17312722]
[1770055553894,11.55714607,104.43,104.37,57.87018115]
[1770055554198,2.93244607,104.41,104.37,49.24068115]
[1770055554992,47.89789614,104.42,104.37,49.24068115]
[1770055555195,44.96545007,104.42,104.37,49.24068115]
[1770055555594,47.89789614,104.42,104.37,49.24068115]
[1770055556294,8.6262,104.42,104.37,49.24068115]
[1770055557797,11.55864607,104.42,104.37,49.24068115]
[1770055558501,8.6262,104.42,104.37,57.87018115]
[1770055559398,8.6262,104.42,104.37,49.24068115]
[1770055559991,45.58735346,104.44,104.37,60.80272722]
[1770055560199,48.51979953,104.44,104.37,60.80272722]
[1770055560498,2.93244607,104.43,104.37,60.80272722]
[1770055560700,2.93244607,104.42,104.37,49.24068115]
[1770055562295,11.55794607,104.42,104.37,49.24068115]
[1770055563301,42.34051568,104.4,104.36,2.77948636]
[1770055563897,42.69065833,104.44,104.38,49.24068115]
[1770055564499,8.6253,104.43,104.38,49.24068115]
[1770055564699,2.93244607,104.43,104.38,49.24068115]
[1770055564992,43.25093293,104.43,104.38,49.24068115]
[1770055565195,2.93244607,104.42,104.38,49.24068115]
[1770055565395,2.93244607,104.41,104.36,60.64976751]
[1770055565598,2.93244607,104.4,104.36,52.02016751]
[1770055566302,40.66229133,104.4,104.36,2.77948636]
[1770055566905,49.28949133,104.4,104.36,2.77948636]
[1770055568909,2.93244607,104.38,104.36,8.636e-05]
[1770055570308,11.56124607,104.38,104.36,8.636e-05]
[1770055570509,2.93244607,104.38,104.36,8.636e-05]
[1770055570710,47.71938546,104.39,104.36,8.636e-05]
[1770055571104,44.78693939,104.39,104.36,8.636e-05]
[1770055571309,53.41493939,104.39,104.36,8.636e-05]
[1770055572011,8.6269,104.41,104.36,49.24076751]
[1770055572207,48.88144581,104.45,104.38,52.17312722]
[1770055572710,45.94899974,104.45,104.39,52.17312722]
[1770055573113,57.50524581,104.45,104.39,49.24068115]
[1770055573418,2.93244607,104.44,104.39,49.24068115]
[1770055574318,11.55644607,104.44,104.39,49.24068115]
[1770055574813,46.86985642,104.47,104.41,52.17312722]
[1770055575813,46.86985642,104.47,104.41,49.24068115]
[1770055576318,55.49115642,104.47,104.41,52.17312722]
[1770055576715,48.62484394,104.49,104.42,52.17312722]
[1770055576915,48.62484394,104.49,104.43,49.24068115]
[1770055577322,2.93244607,104.48,104.43,49.24068115]
[1770055577512,49.65963875,104.47,104.4,60.79952722]
[1770055577715,180.82689268,104.48,104.4,49.24068115]
[1770055577716,49.65963875,104.46,104.4,49.24068115]
[1770055577917,2.93244607,104.45,104.4,49.24068115]
[1770055579025,11.55544607,104.45,104.4,49.24068115]
[1770055580415,46.72719268,104.46,104.4,60.80012722]
[1770055581019,55.34939268,104.46,104.4,49.24068115]
[1770055581230,46.72719268,104.46,104.4,49.24068115]
[1770055581526,49.65963875,104.46,104.4,49.24068115]
[1770055581924,46.72719268,104.46,104.4,49.24068115]
[1770055582225,46.72719268,104.46,104.4,52.17312722]
[1770055583229,49.65963875,104.46,104.4,49.24068115]
[1770055584328,8.6232,104.45,104.4,49.24068115]
[1770055585025,8.6238,104.44,104.4,49.24068115]
[1770055585932,8.6231,104.45,104.4,49.24068115]
[1770055588732,55.34939268,104.46,104.4,60.80002722]
[1770055588934,55.34939268,104.46,104.4,52.17312722]
[1770055589536,55.34939268,104.46,104.4,57.86768115]
[1770055590036,55.34939268,104.46,104.4,60.80012722]
[1770055590236,8.6222,104.46,104.4,60.80012722]
[1770055590932,8.6222,104.46,104.38,134.2244]
[1770055590933,8.6215,104.47,104.42,52.88248353]
[1770055593540,8.6215,104.47,104.42,61.50798353]
[1770055593839,57.47808842,104.48,104.42,64.4404296]
[1770055594139,57.47808842,104.48,104.42,52.88248353]
[1770055594140,8.6216,104.47,104.42,52.88248353]
[1770055594338,52.95165412,104.46,104.4,52.88248353]
[1770055594534,2.93244607,104.45,104.4,52.88248353]
[1770055594739,8.6239,104.44,104.4,52.88248353]
[1770055595141,52.95165412,104.45,104.4,52.88248353]
[1770055595342,50.01920805,104.45,104.4,52.88248353]
[1770055595539,58.64230805,104.45,104.4,52.88248353]
[1770055596438,58.64230805,104.45,104.4,61.50958353]
[1770055596635,8.6231,104.45,104.4,61.50958353]
[1770055596841,50.00998306,104.47,104.42,52.88248353]
[1770055597533,58.63138306,104.47,104.42,52.88248353]
[1770055597737,52.73882155,104.5,104.43,55.8149296]
[1770055598132,49.80637548,104.5,104.45,52.88248353]
[1770055598339,52.97179995,104.52,104.45,64.4377296]
[1770055598540,52.97179995,104.51,104.45,61.50528353]
[1770055599342,52.72226997,104.48,104.43,52.88248353]
[1770055599545,134.0756,104.5,104.41,52.88248353]
[1770055599546,52.72226997,104.47,104.41,52.88248353]
[1770055599845,61.57186827,104.46,104.41,52.88248353]
[1770055600047,61.57186827,104.46,104.37,134.2283]
[1770055600048,2.93244607,104.44,104.37,2.93244607]
[1770055600339,2.93244607,104.44,104.36,2.93253243]
[1770055600536,2.93560012,104.42,104.36,8.636e-05]
[1770055600739,2.93560012,104.41,104.36,8.636e-05]
[1770055601339,11.56210012,104.41,104.36,8.636e-05]
[1770055601947,8.6275,104.4,104.36,8.636e-05]
[1770055602643,11.56310012,104.4,104.36,8.636e-05]
[1770055602841,67.73329668,104.4,104.36,8.636e-05]
[1770055603040,11.56360012,104.39,104.36,8.636e-05]
[1770055606840,59.10579668,104.4,104.36,8.636e-05]
[1770055608447,67.73339668,104.4,104.36,8.636e-05]
[1770055608842,11.56360012,104.39,104.36,8.636e-05]
[1770055609144,2.93560012,104.38,104.36,8.636e-05]
[1770055609847,2.93560012,104.38,104.33,52.88248353]
[1770055609848,2.93560012,104.37,104.33,37.67276989]
[1770055610942,134.1893,104.41,104.33,37.67276989]
[1770055611149,2.93560012,104.41,104.34,2.93560012]
[1770055611750,11.56270012,104.41,104.35,54.00977422]
[1770055612051,8.6271,104.41,104.35,54.00977422]
[1770055612350,2.93560012,104.39,104.35,54.00977422]
[1770055612853,2.93560012,104.39,104.32,11.56890012]
[1770055612854,11.56360012,104.39,104.33,54.00977422]
[1770055613055,2.93560012,104.38,104.33,54.00977422]
[1770055613655,59.97653851,104.37,104.31,54.00977422]
[1770055613950,2.93560012,104.36,104.31,54.00977422]
[1770055614150,59.97653851,104.37,104.31,54.00977422]
[1770055615348,68.60623851,104.37,104.31,54.00977422]
[1770055615951,2.93560012,104.36,104.31,54.00977422]
[1770055616248,2.93560012,104.35,104.29,54.00977422]
[1770055617152,8.6321,104.34,104.29,54.00977422]
[1770055617355,11.56770012,104.34,104.29,54.00977422]
[1770055619451,59.97653851,104.34,104.27,2.93560012]
[1770055619653,57.04093839,104.33,104.26,54.00977422]
[1770055619956,2.93560012,104.3,104.22,56.94537434]
[1770055620347,2.93560012,104.3,104.24,54.00977422]
[1770055620547,57.04093839,104.32,104.24,54.00977422]
[1770055620754,2.93560012,104.3,104.26,54.00977422]
[1770055621255,57.04093839,104.32,104.26,54.00977422]